bitfinex/quotes_BTCUSD_20250225
["timestamp","ask_amount","ask_price","bid_price","bid_amount"]
[1740449061663,0.002,92612.0,92611.0,0.19092]
[1740449061870,0.002,92612.0,92611.0,0.04352]
[1740449064574,0.002,92612.0,92611.0,0.28672]
[1740449065315,0.002,92612.0,92611.0,0.2752]
[1740449065516,0.002,92612.0,92611.0,0.28672]
[1740449066347,0.002,92612.0,92611.0,0.26672]
[1740449067375,0.001,92612.0,92611.0,0.2482]
[1740449067598,0.01331363,92612.0,92611.0,0.26672]
[1740449067802,0.01231363,92612.0,92611.0,0.26172]
[1740449068011,0.01131363,92612.0,92611.0,0.25472]
[1740449068215,0.01231363,92612.0,92611.0,0.25972]
[1740449068444,0.01231363,92612.0,92611.0,0.19695473]
[1740449068855,0.01331363,92612.0,92611.0,0.20195473]
[1740449069233,0.01231363,92612.0,92611.0,0.19495473]
[1740449070073,0.01231363,92612.0,92611.0,0.11711473]
[1740449070283,0.01231363,92612.0,92611.0,0.12863473]
[1740449070492,0.01331363,92612.0,92611.0,0.13563473]
[1740449070673,0.01231363,92612.0,92611.0,0.08593473]
[1740449071023,0.01331363,92612.0,92611.0,0.01196]
[1740449071232,0.01331363,92612.0,92611.0,0.00334]
[1740449071435,0.02141607,92612.0,92597.0,0.0016972]
[1740449071641,0.02329851,92612.0,92604.0,0.01152]
[1740449071855,0.02229851,92612.0,92604.0,0.01152]
[1740449072030,0.02229851,92612.0,92597.0,0.0016972]
[1740449072031,0.02429851,92612.0,92611.0,0.011]
[1740449072260,0.02429851,92612.0,92600.0,0.01364563]
[1740449072469,0.31802117,92611.0,92585.0,0.0016972]
[1740449072690,0.15,92609.0,92593.0,0.01152]
[1740449072899,0.15,92609.0,92585.0,0.00179117]
[1740449073100,0.00286045,92608.0,92585.0,0.00179117]
[1740449073742,0.00800081,92586.0,92585.0,0.00179117]
[1740449074231,0.01080205,92586.0,92585.0,0.00179117]
[1740449075364,0.01180205,92586.0,92585.0,0.00179117]
[1740449075595,0.04005944,92586.0,92585.0,0.00179117]
[1740449076546,0.03905944,92586.0,92585.0,0.00179117]
[1740449077027,0.04005944,92586.0,92585.0,0.00179117]
[1740449079529,0.0069,92585.0,92559.0,0.07338978]
[1740449079730,0.0069,92585.0,92565.0,0.00012884]
[1740449079731,0.15,92584.0,92565.0,0.00012884]
[1740449079879,0.15,92582.0,92565.0,0.00012884]
[1740449080088,0.0082164,92561.0,92560.0,0.01152]
[1740449080513,0.0110015,92561.0,92560.0,0.01152]
[1740449080725,0.0110015,92561.0,92541.0,0.24336893]
[1740449080896,0.0257,92560.0,92541.0,0.00012893]
[1740449081378,0.00278459,92559.0,92541.0,0.00012893]
[1740449082213,0.00542752,92558.0,92541.0,0.00012893]
[1740449083018,0.00278459,92557.0,92541.0,0.00012893]
[1740449083890,0.0082164,92561.0,92541.0,0.00012893]
[1740449084099,0.00278459,92556.0,92541.0,0.00012893]
[1740449084311,0.15,92559.0,92531.0,0.01152]
[1740449084499,0.00272473,92555.0,92532.0,0.01152]
[1740449084723,0.04130426,92558.0,92532.0,0.01152]
[1740449084931,0.00272473,92554.0,92532.0,0.01152]
[1740449085139,0.04130426,92558.0,92531.0,0.01152]
[1740449085362,0.00272473,92553.0,92531.0,0.01152]
[1740449085570,0.01941575,92552.0,92531.0,0.01152]
[1740449085781,0.02214048,92552.0,92531.0,0.01152]
[1740449086903,0.00272473,92552.0,92538.0,0.0779]
[1740449087122,0.00272473,92552.0,92539.0,0.0494]
[1740449087359,0.00012855,92559.0,92539.0,0.0494]
[1740449087838,0.00269467,92558.0,92539.0,0.0494]
[1740449088292,0.00269467,92558.0,92547.0,0.02]
[1740449088527,0.00269467,92558.0,92539.0,0.0494]
[1740449088528,0.00269467,92558.0,92556.0,0.02]
[1740449088993,0.00012855,92559.0,92558.0,0.02]
[1740449089444,0.00012855,92559.0,92558.0,0.04151245]
[1740449089682,0.00012855,92559.0,92558.0,0.11761245]
[1740449089920,0.00012855,92559.0,92558.0,0.11761233]
[1740449091273,0.00012855,92559.0,92558.0,0.16571233]
[1740449092411,0.01144434,92559.0,92558.0,0.16571233]
[1740449094085,0.15,92613.0,92578.0,0.0828]
[1740449094354,0.02376537,92611.0,92579.0,0.01152]
[1740449094583,0.02636668,92611.0,92579.0,0.01152]
[1740449094804,0.01131643,92610.0,92579.0,0.01152]
[1740449095034,0.01131643,92610.0,92580.0,0.046]
[1740449095269,0.00260131,92609.0,92580.0,0.046]
[1740449095503,0.01254657,92608.0,92580.0,0.046]
[1740449095958,0.00792989,92597.0,92580.0,0.046]
[1740449097827,0.00809419,92600.0,92584.0,0.02]
[1740449101766,0.01131643,92610.0,92592.0,0.02]
[1740449102009,0.01131643,92610.0,92598.0,0.02]
[1740449102215,0.01131643,92610.0,92608.0,0.02]
[1740449102627,0.01131643,92610.0,92609.0,0.02]
[1740449102836,0.01131643,92610.0,92609.0,0.1201]
[1740449103091,0.01131643,92610.0,92609.0,0.167]
[1740449103321,0.01131643,92610.0,92609.0,0.17852]
[1740449103987,0.01131643,92610.0,92609.0,0.167]
[1740449104206,0.01131643,92610.0,92609.0,0.17852]
[1740449104434,0.01131643,92610.0,92609.0,0.127]
[1740449104682,0.01131643,92610.0,92609.0,0.15852]
[1740449104911,0.01131643,92610.0,92609.0,0.18003164]
[1740449105134,0.01131643,92610.0,92609.0,0.147]
[1740449105367,0.01131643,92610.0,92609.0,0.167]
[1740449105606,0.01131643,92610.0,92609.0,0.01152]
[1740449106083,0.01131643,92610.0,92592.0,0.0779]
[1740449106084,0.01131643,92610.0,92608.0,0.01152]
[1740449107606,0.02826661,92610.0,92608.0,0.01152]
[1740449107823,0.06987153,92610.0,92608.0,0.01152]
[1740449108022,0.01082879,92609.0,92608.0,0.01152]
[1740449108835,0.00254969,92609.0,92608.0,0.01152]
[1740449109064,0.01131512,92609.0,92608.0,0.01152]
[1740449109506,0.01386481,92609.0,92608.0,0.01152]
[1740449110093,0.02187472,92609.0,92608.0,0.01152]
[1740449110297,0.02187472,92609.0,92608.0,0.08762]
[1740449110298,0.00254969,92609.0,92608.0,0.08762]
[1740449110498,0.00254969,92609.0,92608.0,0.169382]
[1740449110701,0.15,92646.0,92608.0,0.17089364]
[1740449110882,0.01956489,92633.0,92608.0,0.15662]
[1740449111305,0.02569625,92629.0,92608.0,0.13662]
[1740449111468,0.02569625,92629.0,92609.0,0.02]
[1740449111670,0.02569625,92629.0,92614.0,0.02]
[1740449112071,0.02569625,92629.0,92608.0,0.13662]
[1740449112723,0.02569625,92629.0,92608.0,0.15662]
[1740449113348,0.02569625,92629.0,92609.0,0.02]
[1740449113549,0.02569625,92629.0,92614.0,0.02]
[1740449113755,0.02569625,92629.0,92618.0,0.02]
[1740449113952,0.02569625,92629.0,92623.0,0.02]
[1740449114155,0.00251235,92628.0,92626.0,0.02]
[1740449114360,0.0008484,92629.0,92628.0,0.02]
[1740449114568,0.00336075,92629.0,92628.0,0.0654]
[1740449114814,0.00336075,92629.0,92628.0,0.08385241]
[1740449114815,0.0008484,92629.0,92628.0,0.08385241]
[1740449114943,0.0008484,92629.0,92628.0,0.08691128]
[1740449115389,0.0008484,92629.0,92628.0,0.16611128]
[1740449116271,0.0008484,92629.0,92628.0,0.17763128]
[1740449116924,0.0008484,92629.0,92628.0,0.20876569]
[1740449117117,0.0008484,92629.0,92628.0,0.25547336]
[1740449117253,0.0008484,92629.0,92628.0,0.20876569]
[1740449117872,0.0008484,92629.0,92628.0,0.19724569]
[1740449118100,0.0008484,92629.0,92628.0,0.20876569]
[1740449118554,0.0008484,92629.0,92628.0,0.16876569]
[1740449118666,0.0008484,92629.0,92628.0,0.18876569]
[1740449119131,0.0008484,92629.0,92628.0,0.17724569]
[1740449119351,0.0008484,92629.0,92628.0,0.15724569]
[1740449119584,0.0008484,92629.0,92628.0,0.18876569]
[1740449119805,0.0008484,92629.0,92628.0,0.16876569]
[1740449120032,0.0008484,92629.0,92628.0,0.13612]
[1740449120256,0.0008484,92629.0,92628.0,0.1246]
[1740449120500,0.0008484,92629.0,92628.0,0.13612]
[1740449121210,0.0008484,92629.0,92628.0,0.01152]
[1740449122445,0.00911669,92629.0,92628.0,0.01152]
[1740449125200,0.0008484,92629.0,92628.0,0.03152]
[1740449125416,0.0008484,92629.0,92628.0,0.17692]
[1740449125886,0.0008484,92629.0,92628.0,0.1654]
[1740449126119,0.0008484,92629.0,92628.0,0.13688]
[1740449126311,0.0008484,92629.0,92628.0,0.15688]
[1740449127046,0.0008484,92629.0,92628.0,0.17688]
[1740449128203,0.0008484,92629.0,92628.0,0.21903914]
[1740449128732,0.0008484,92629.0,92628.0,0.17688]
[1740449133603,0.0008484,92629.0,92628.0,0.01148]
[1740449135074,0.00669159,92629.0,92628.0,0.01148]
[1740449135252,0.0008484,92629.0,92628.0,0.01148]
[1740449135405,0.00669159,92629.0,92628.0,0.01148]
[1740449136016,0.00669159,92629.0,92626.0,0.02]
[1740449136218,0.00669159,92629.0,92628.0,0.01148]
[1740449136424,0.00669159,92629.0,92628.0,0.03148]
[1740449136939,0.0008484,92629.0,92628.0,0.11228]
[1740449137525,0.0008484,92629.0,92628.0,0.15998]
[1740449137757,0.0008484,92629.0,92628.0,0.18149129]
[1740449137963,0.0008484,92629.0,92628.0,0.17998]
[1740449139222,0.0008484,92629.0,92628.0,0.197978]
[1740449139437,0.0008484,92629.0,92628.0,0.17998]
[1740449145338,0.0008484,92629.0,92628.0,0.15998]
[1740449145544,0.0008484,92629.0,92628.0,0.17998]
[1740449146177,0.0008484,92629.0,92628.0,0.15998]
[1740449146799,0.0008484,92629.0,92623.0,0.02]
[1740449147047,0.0008484,92629.0,92621.0,0.24312]
[1740449147250,0.0008484,92629.0,92622.0,0.01148]
[1740449150317,0.0008484,92629.0,92627.0,0.02]
[1740449150681,0.0008484,92629.0,92623.0,0.0827]
[1740449150682,0.0008484,92629.0,92628.0,0.02]
[1740449150888,0.0008484,92629.0,92628.0,0.0851]
[1740449152360,0.01215862,92629.0,92628.0,0.0851]
[1740449152473,0.01215862,92629.0,92628.0,0.08054978]
[1740449152944,0.01215862,92629.0,92628.0,0.12233476]
[1740449153187,0.01215862,92629.0,92628.0,0.08054978]
[1740449154846,0.01215862,92629.0,92628.0,0.09202978]
[1740449157351,0.02910265,92629.0,92628.0,0.09202978]
[1740449159001,0.00805528,92648.0,92634.0,0.02]
[1740449159644,0.00805528,92648.0,92629.0,0.01747298]
[1740449159645,0.00805528,92648.0,92629.0,0.01544978]
[1740449159841,0.00805528,92648.0,92634.0,0.02]
[1740449160473,0.00559999,92647.0,92634.0,0.02]
[1740449160678,0.00805528,92648.0,92634.0,0.02]
[1740449160910,0.00805528,92648.0,92635.0,0.00920298]
[1740449161473,0.00805528,92648.0,92634.0,0.02]
[1740449161680,0.00560679,92647.0,92634.0,0.02]
[1740449161886,0.00805528,92648.0,92634.0,0.02]
[1740449162977,0.00560679,92647.0,92634.0,0.02]
[1740449163157,0.00560679,92647.0,92640.0,0.01544978]
[1740449163356,0.00560679,92647.0,92643.0,0.01544978]
[1740449163557,0.02561549,92651.0,92648.0,0.01544978]
[1740449164763,0.02561549,92651.0,92650.0,0.01544978]
[1740449165028,0.02561549,92651.0,92650.0,0.16176071]
[1740449165141,0.00042963,92651.0,92650.0,0.16176071]
[1740449165565,0.00042963,92651.0,92650.0,0.16024978]
[1740449166018,0.00042963,92651.0,92649.0,0.01544978]
[1740449166368,0.00564074,92650.0,92649.0,0.01544978]
[1740449166898,0.00564074,92650.0,92638.0,0.048]
[1740449167067,0.00564074,92650.0,92634.0,0.0016952]
[1740449167437,0.00564074,92650.0,92635.0,0.01148]
[1740449167649,0.00793448,92648.0,92635.0,0.01148]
[1740449168071,0.0056413,92647.0,92635.0,0.01148]
[1740449168273,0.0056413,92647.0,92634.0,0.0131752]
[1740449168494,0.02823311,92646.0,92634.0,0.0131752]
[1740449168682,0.00563121,92645.0,92634.0,0.0016952]
[1740449169370,0.02257558,92645.0,92634.0,0.0016952]
[1740449169612,0.00563121,92645.0,92634.0,0.0016952]
[1740449171749,0.00563121,92645.0,92635.0,0.0805]
[1740449172090,0.00793448,92648.0,92635.0,0.0805]
[1740449172498,0.00560165,92647.0,92636.0,0.0481]
[1740449173883,0.00560165,92647.0,92634.0,0.0016952]
[1740449174541,0.00560165,92647.0,92635.0,0.01148]
[1740449175076,0.3522886,92647.0,92617.0,0.001696]
[1740449175223,0.22476335,92646.0,92633.0,0.01148]
[1740449175413,0.15,92644.0,92617.0,0.001696]
[1740449175735,0.25988187,92643.0,92618.0,0.01148]
[1740449175897,0.15,92642.0,92618.0,0.01148]
[1740449176516,0.00560992,92641.0,92618.0,0.01148]
[1740449176720,0.05770602,92640.0,92617.0,0.001696]
[1740449176933,0.05770602,92640.0,92619.0,0.01148]
[1740449177149,0.00559958,92639.0,92619.0,0.01148]
[1740449177741,0.01694626,92635.0,92619.0,0.01148]
[1740449178199,0.00559939,92634.0,92619.0,0.01148]
[1740449178411,0.00825365,92620.0,92619.0,0.01148]
[1740449178842,0.01385304,92620.0,92619.0,0.01148]
[1740449179294,0.01385304,92620.0,92618.0,0.01148]
[1740449179542,0.01385304,92620.0,92617.0,0.001696]
[1740449179759,0.01385304,92620.0,92607.0,0.2546]
[1740449179992,0.01385304,92620.0,92607.0,0.2107536]
[1740449180216,0.01694917,92617.0,92607.0,0.2107536]
[1740449180427,0.01694917,92617.0,92607.0,0.01148]
[1740449180856,0.08680508,92612.0,92579.0,0.047]
[1740449181056,0.00813495,92591.0,92583.0,0.01148]
[1740449181674,0.00556033,92590.0,92579.0,0.00012888]
[1740449182332,0.01683133,92590.0,92579.0,0.00012888]
[1740449183375,0.01683133,92590.0,92580.0,0.01148]
[1740449184383,0.01683133,92590.0,92588.0,0.082]
[1740449184591,0.01683133,92590.0,92589.0,0.08494978]
[1740449184800,0.011271,92590.0,92589.0,0.08646158]
[1740449184982,0.011271,92590.0,92589.0,0.11910717]
[1740449185180,0.011271,92590.0,92589.0,0.28791225]
[1740449185377,0.00455022,92651.0,92616.0,0.02]
[1740449185603,0.01126959,92623.0,92617.0,0.01148]
[1740449185877,0.032523,92641.0,92617.0,0.01148]
[1740449186211,0.00554304,92640.0,92617.0,0.01148]
[1740449186596,0.00597241,92640.0,92617.0,0.01148]
[1740449187214,0.05771406,92654.0,92617.0,0.01148]
[1740449187437,0.00531208,92639.0,92604.0,0.02]
[1740449187639,0.01703001,92653.0,92605.0,0.01148]
[1740449187640,0.00818436,92620.0,92605.0,0.01148]
[1740449187816,0.00818436,92620.0,92602.0,0.02]
[1740449188244,0.00531208,92619.0,92608.0,0.02]
[1740449188557,0.00818436,92620.0,92608.0,0.02]
[1740449188991,0.00818436,92620.0,92608.0,0.02042937]
[1740449189391,0.00818436,92620.0,92609.0,0.02]
[1740449189615,0.00818436,92620.0,92612.0,0.02]
[1740449190195,0.00818436,92620.0,92613.0,0.0797]
[1740449190595,0.00818436,92620.0,92613.0,0.0997]
[1740449190841,0.00818436,92620.0,92615.0,0.02]
[1740449190999,0.06788344,92653.0,92615.0,0.02]
[1740449191212,0.0008479,92640.0,92616.0,0.05867]
[1740449191411,0.0008479,92640.0,92616.0,0.0667]
[1740449191614,0.0008479,92640.0,92618.0,0.02]
[1740449192575,0.0008479,92640.0,92616.0,0.0467]
[1740449192576,0.00814868,92623.0,92616.0,0.0467]
[1740449192981,0.0008479,92640.0,92620.0,0.02]
[1740449193299,0.00805355,92625.0,92620.0,0.02]
[1740449193705,0.0008479,92640.0,92620.0,0.03679115]
[1740449193861,0.0008479,92640.0,92625.0,0.02]
[1740449194062,0.0008479,92640.0,92630.0,0.02]
[1740449194266,0.0008479,92640.0,92632.0,0.02]
[1740449194469,0.0008479,92640.0,92633.0,0.0765]
[1740449194669,0.00803323,92638.0,92633.0,0.0765]
[1740449194917,0.00803323,92638.0,92626.0,0.02]
[1740449197609,0.00803323,92638.0,92627.0,0.01148]
[1740449198174,0.00803323,92638.0,92632.0,0.02]
[1740449199636,0.0008479,92640.0,92634.0,0.02]
[1740449201077,0.0008479,92640.0,92628.0,0.00151128]
[1740449201078,0.0008479,92640.0,92629.0,0.04]
[1740449201300,0.0008479,92640.0,92629.0,0.02]
[1740449201518,0.0008479,92640.0,92630.0,0.02]
[1740449201908,0.00917749,92640.0,92627.0,0.01148]
[1740449202323,0.00917749,92640.0,92626.0,0.02]
[1740449202519,0.00917749,92640.0,92627.0,0.01148]
[1740449202726,0.00917749,92640.0,92625.0,0.02]
[1740449202919,0.00917749,92640.0,92626.0,0.01148]
[1740449203533,0.00917749,92640.0,92619.0,0.02]
[1740449203749,0.00917749,92640.0,92620.0,0.01148]
[1740449205090,0.00917749,92640.0,92620.0,0.03103211]
[1740449205301,0.00917749,92640.0,92620.0,0.01148]
[1740449206270,0.00917749,92640.0,92626.0,0.02]
[1740449206897,0.00917749,92640.0,92624.0,0.02]
[1740449207245,0.00917749,92640.0,92626.0,0.02]
[1740449207445,0.00917749,92640.0,92626.0,0.04]
[1740449207873,0.0008479,92640.0,92629.0,0.02]
[1740449208533,0.0008479,92640.0,92633.0,0.02]
[1740449209838,0.0008479,92640.0,92633.0,0.03187]
[1740449210048,0.0008479,92640.0,92633.0,0.02]
[1740449210415,0.0008479,92640.0,92639.0,0.0663]
[1740449211599,0.00097663,92640.0,92639.0,0.0663]
[1740449212380,0.01228657,92640.0,92639.0,0.05499006]
[1740449213031,0.01228657,92640.0,92639.0,0.01148]
[1740449213446,0.01228657,92640.0,92628.0,0.045]
[1740449213447,0.01721526,92640.0,92628.0,0.045]
[1740449213691,0.01228657,92640.0,92629.0,0.01148]
[1740449215059,0.01228657,92640.0,92630.0,0.01166701]
[1740449215258,0.01228657,92640.0,92631.0,0.01144]
[1740449216132,0.01228657,92640.0,92632.0,0.00869006]
[1740449218755,0.01228657,92640.0,92631.0,0.01144]
[1740449221249,0.01228657,92640.0,92626.0,0.0016954]
[1740449221464,0.01228657,92640.0,92627.0,0.01144]
[1740449221669,0.0049334,92639.0,92627.0,0.01144]
[1740449221872,0.01228657,92640.0,92627.0,0.01144]
[1740449222082,0.0049334,92638.0,92627.0,0.01144]
[1740449222281,0.00492956,92637.0,92627.0,0.01144]
[1740449222508,0.01228657,92640.0,92627.0,0.01144]
[1740449223112,0.01228657,92640.0,92626.0,0.0016954]
[1740449223377,0.00492956,92639.0,92627.0,0.01144]
[1740449224390,0.00492956,92639.0,92625.0,0.0097446]
[1740449224570,0.00492956,92639.0,92608.0,0.0001304]
[1740449224772,0.00807837,92626.0,92608.0,0.0001304]
[1740449225171,0.1757,92624.0,92591.0,0.0005]
[1740449225401,0.00794339,92602.0,92591.0,0.0005]
[1740449226153,0.0049072,92601.0,92591.0,0.0005]
[1740449226709,0.0438729,92601.0,92591.0,0.00092937]
[1740449226908,0.08680508,92600.0,92591.0,0.00092937]
[1740449227110,0.01487223,92599.0,92591.0,0.00092937]
[1740449227712,0.01128125,92598.0,92591.0,0.00092937]
[1740449228161,0.00490666,92597.0,92591.0,0.00092937]
[1740449230484,0.01695505,92596.0,92591.0,0.00092937]
[1740449231056,0.00490666,92595.0,92591.0,0.00092937]
[1740449231291,0.00827811,92594.0,92591.0,0.00092937]
[1740449231500,0.00486989,92593.0,92591.0,0.00092937]
[1740449232161,0.01695505,92596.0,92591.0,0.00092937]
[1740449232407,0.00486989,92595.0,92591.0,0.00092937]
[1740449233814,0.01128125,92598.0,92591.0,0.00092937]
[1740449234049,0.00484799,92594.0,92592.0,0.03264569]
[1740449234286,0.01128125,92598.0,92597.0,0.00869006]
[1740449234531,0.01612924,92598.0,92597.0,0.00869006]
[1740449234776,0.01612924,92598.0,92597.0,0.04133575]
[1740449235262,0.01612924,92598.0,92597.0,0.14273575]
[1740449235518,0.01612924,92598.0,92597.0,0.18923575]
[1740449235776,0.01128125,92598.0,92597.0,0.18923575]
[1740449236032,0.01128125,92598.0,92597.0,0.18054569]
[1740449236274,0.01128125,92598.0,92597.0,0.18923575]
[1740449236511,0.01128125,92598.0,92597.0,0.16054569]
[1740449236754,0.01128125,92598.0,92597.0,0.16923575]
[1740449237722,0.01128125,92598.0,92597.0,0.16054569]
[1740449238205,0.01128125,92598.0,92597.0,0.04408569]
[1740449238421,0.01695106,92616.0,92597.0,0.04408569]
[1740449238627,0.00488346,92598.0,92597.0,0.04408569]
[1740449238900,0.0112892,92627.0,92597.0,0.04408569]
[1740449239107,0.01483493,92626.0,92597.0,0.01144]
[1740449239583,0.00829171,92604.0,92597.0,0.01144]
[1740449240402,0.00488346,92603.0,92597.0,0.01144]
[1740449241254,0.00488346,92603.0,92597.0,0.0016968]
[1740449242020,0.00488346,92603.0,92591.0,0.00092937]
[1740449242206,0.00488346,92603.0,92573.0,0.0475]
[1740449242207,0.08680508,92602.0,92575.0,0.01144]
[1740449242357,0.08680508,92602.0,92573.0,0.0475]
[1740449242358,0.17756803,92601.0,92573.0,0.04762888]
[1740449242557,0.00467582,92600.0,92573.0,0.04762888]
[1740449243752,0.08680508,92600.0,92573.0,0.04762888]
[1740449243958,0.00467582,92599.0,92573.0,0.04762888]
[1740449244382,0.00467582,92599.0,92573.0,0.00012888]
[1740449244642,0.02497726,92598.0,92573.0,0.00012888]
[1740449244993,0.00464491,92597.0,92573.0,0.00012888]
[1740449246311,0.08680508,92590.0,92573.0,0.00012888]
[1740449246539,0.08680508,92590.0,92561.0,0.0479]
[1740449246540,0.00807168,92574.0,92561.0,0.0479]
[1740449246668,0.00807168,92574.0,92554.0,0.0815]
[1740449249384,0.00807168,92574.0,92549.0,0.0489]
[1740449249566,0.00464283,92573.0,92549.0,0.0489]
[1740449249776,0.00464283,92573.0,92541.0,0.0016966]
[1740449249777,0.08680508,92566.0,92541.0,0.0016966]
[1740449249991,0.08680508,92566.0,92528.0,0.01038486]
[1740449249992,0.00827994,92550.0,92528.0,0.0016948]
[1740449250401,0.01696127,92547.0,92528.0,0.0016948]
[1740449250813,0.00462068,92546.0,92528.0,0.0016948]
[1740449251444,0.00462068,92546.0,92537.0,0.00182395]
[1740449251864,0.00827994,92550.0,92537.0,0.00182395]
[1740449252068,0.00462068,92545.0,92537.0,0.00182395]
[1740449252216,0.00827994,92550.0,92537.0,0.00182395]
[1740449252421,0.00462068,92544.0,92528.0,0.0016948]
[1740449252635,0.00462068,92544.0,92518.0,0.0016954]
[1740449252636,0.02722936,92543.0,92518.0,0.0016954]
[1740449252843,0.03185004,92543.0,92505.0,0.02]
[1740449253051,0.03185004,92543.0,92504.0,0.0131372]
[1740449253438,0.03185004,92543.0,92505.0,0.02]
[1740449253676,0.03185004,92543.0,92504.0,0.0131372]
[1740449253885,0.00794937,92519.0,92507.0,0.02]
[1740449254050,0.00794937,92519.0,92505.0,0.02]
[1740449254396,0.00456583,92518.0,92504.0,0.0016972]
[1740449254605,0.00456583,92518.0,92505.0,0.02]
[1740449254780,0.00456583,92518.0,92506.0,0.02]
[1740449254981,0.00456583,92518.0,92507.0,0.02]
[1740449255752,0.04441705,92518.0,92511.0,0.0797]
[1740449256838,0.04441705,92518.0,92512.0,0.00869006]
[1740449259722,0.04441705,92518.0,92511.0,0.0797]
[1740449259921,0.04441705,92518.0,92512.0,0.00869006]
[1740449260870,0.04441705,92518.0,92511.0,0.0797]
[1740449265251,0.04441705,92518.0,92512.0,0.00869006]
[1740449266320,0.04441705,92518.0,92517.0,0.00869006]
[1740449266855,0.03985122,92518.0,92517.0,0.05679006]
[1740449267069,0.03985122,92518.0,92517.0,0.1411032]
[1740449267273,0.00825495,92531.0,92529.0,0.00869006]
[1740449270365,0.05546934,92539.0,92529.0,0.00869006]
[1740449270776,0.05546934,92539.0,92535.0,0.00869006]
[1740449270932,0.05546934,92539.0,92530.0,0.0815]
[1740449270933,0.05546934,92539.0,92538.0,0.05839006]
[1740449271128,0.05546934,92539.0,92534.0,0.01144]
[1740449271335,0.03850816,92539.0,92534.0,0.01144]
[1740449271585,0.00596755,92538.0,92534.0,0.01144]
[1740449271758,0.00456259,92537.0,92534.0,0.01144]
[1740449272169,0.01129474,92540.0,92534.0,0.01144]
[1740449272366,0.00456259,92539.0,92534.0,0.01144]
[1740449272748,0.001699,92543.0,92534.0,0.01144]
[1740449272951,0.00456259,92542.0,92514.0,0.1264966]
[1740449273160,0.03992568,92543.0,92515.0,0.01144]
[1740449273367,0.00456259,92542.0,92515.0,0.01144]
[1740449274413,0.00456259,92542.0,92521.0,0.02]
[1740449275032,0.00456259,92542.0,92517.0,0.01144]
[1740449275486,0.00456259,92542.0,92518.0,0.02]
[1740449276288,0.00456259,92542.0,92521.0,0.00869006]
[1740449278081,0.00626159,92542.0,92521.0,0.00869006]
[1740449278496,0.01696137,92537.0,92521.0,0.00869006]
[1740449279009,0.00456932,92536.0,92521.0,0.00869006]
[1740449279629,0.00456932,92536.0,92522.0,0.083]
[1740449279862,0.00456932,92536.0,92526.0,0.00869006]
[1740449279863,0.01088486,92536.0,92526.0,0.00869006]
[1740449280107,0.00631554,92536.0,92522.0,0.083]
[1740449280573,0.00631554,92536.0,92523.0,0.02]
[1740449281458,0.00631554,92536.0,92522.0,0.083]
[1740449282187,0.00631554,92536.0,92518.0,0.0122895]
[1740449282422,0.00631554,92536.0,92514.0,0.0016966]
[1740449282663,0.0261781,92535.0,92514.0,0.00071562]
[1740449282949,0.03073423,92535.0,92514.0,0.00071562]
[1740449283182,0.03073423,92535.0,92504.0,0.0813972]
[1740449283357,0.0080477,92515.0,92504.0,0.0016972]
[1740449283735,0.0045561,92514.0,92504.0,0.0016972]
[1740449284691,0.0045561,92514.0,92504.0,0.00043006]
[1740449284895,0.08680508,92513.0,92487.0,0.0821]
[1740449285100,0.00994089,92512.0,92484.0,0.24340896]
[1740449285332,0.16446967,92512.0,92484.0,0.24340896]
[1740449285528,0.16446967,92512.0,92486.0,0.02]
[1740449285704,0.16446967,92512.0,92487.0,0.02]
[1740449286332,0.01446967,92512.0,92487.0,0.02]
[1740449286534,0.01207225,92511.0,92487.0,0.02]
[1740449286710,0.00452878,92512.0,92495.0,0.00869006]
[1740449287070,0.0080477,92515.0,92497.0,0.00869006]
[1740449287071,0.00452878,92511.0,92497.0,0.00869006]
[1740449287567,0.01696636,92508.0,92494.0,0.00869006]
[1740449287926,0.00451922,92507.0,92491.0,0.02]
[1740449288336,0.05801922,92507.0,92484.0,0.24340896]
[1740449288539,0.00863856,92506.0,92484.0,0.24340896]
[1740449289143,0.00451922,92505.0,92484.0,0.24340896]
[1740449289464,0.00451922,92505.0,92495.0,0.0008495]
[1740449290905,0.08680508,92502.0,92495.0,0.0008495]
[1740449291313,0.00448999,92501.0,92495.0,0.0008495]
[1740449291481,0.00999336,92500.0,92495.0,0.0008495]
[1740449291656,0.0535,92499.0,92458.0,0.0806]
[1740449291859,0.08680508,92491.0,92458.0,0.09204]
[1740449292292,0.004485,92490.0,92458.0,0.09204]
[1740449292505,0.01697003,92485.0,92458.0,0.0806]
[1740449292829,0.02582601,92484.0,92458.0,0.0806]
[1740449292977,0.00447788,92483.0,92458.0,0.0806]
[1740449293971,0.00818385,92467.0,92458.0,0.0806]
[1740449294174,0.01265978,92467.0,92458.0,0.0806]
[1740449294884,0.01265978,92467.0,92457.0,0.02]
[1740449295558,0.01265978,92467.0,92457.0,0.02869006]
[1740449295799,0.05602685,92467.0,92465.0,0.00869006]
[1740449295998,0.047843,92467.0,92466.0,0.08808786]
[1740449297230,0.00863856,92506.0,92481.0,0.00869006]
[1740449297431,0.00863856,92506.0,92470.0,0.02]
[1740449297432,0.0169697,92484.0,92483.0,0.08839006]
[1740449297636,0.00512766,92499.0,92491.0,0.00869006]
[1740449297833,0.00512766,92499.0,92484.0,0.0475]
[1740449297834,0.0083102,92492.0,92484.0,0.0475]
[1740449298040,0.01696696,92491.0,92474.0,0.02869006]
[1740449298234,0.01696696,92491.0,92471.0,0.0997]
[1740449298373,0.01696696,92491.0,92478.0,0.00869006]
[1740449298555,0.01696696,92491.0,92471.0,0.0797]
[1740449298556,0.01130157,92490.0,92471.0,0.0797]
[1740449298963,0.01130157,92490.0,92474.0,0.00869006]
[1740449299169,0.01130157,92490.0,92471.0,0.0797]
[1740449299407,0.01130157,92490.0,92470.0,0.0475]
[1740449299613,0.00515899,92489.0,92457.0,0.03144]
[1740449299838,0.24196407,92489.0,92457.0,0.02]
[1740449300051,0.17785428,92488.0,92458.0,0.00869006]
[1740449300256,0.17785428,92488.0,92457.0,0.02]
[1740449300453,0.00515462,92487.0,92458.0,0.00869006]
[1740449301201,0.00515462,92487.0,92457.0,0.02869006]
[1740449301409,0.00515462,92487.0,92457.0,0.02]
[1740449301809,0.00515462,92487.0,92456.0,0.0499]
[1740449302326,0.00811439,92467.0,92456.0,0.0499]
[1740449302759,0.013258,92467.0,92456.0,0.0499]
[1740449304167,0.013258,92467.0,92459.0,0.00869006]
[1740449304592,0.013258,92467.0,92456.0,0.05859006]
[1740449304800,0.013258,92467.0,92456.0,0.0499]